Cogmind - Beta 11 @@@ ROGUE MODE // 2022.04.03 @ 23:42:53 Player: TickTock Result: Destroyed by G-47 Trooper with Particle Gun Performance ------------- Evolutions (0) 0 Regions Visited (1) 200 Robots Destroyed (9) 45 Value Destroyed (135) 135 Prototype IDs (0) 0 Alien Tech Used (0) 0 Bonus (0) 0 TOTAL SCORE: 380 Bonus ------- None Cogmind --------- Core Integrity 0/250 Matter 274/300 Energy 100/100 System Corruption 0% Temperature Cool (9) Movement Core (50) Location -10/Materials Parts ------- > --- POWER (1) -------- (None) > --- PROPULSION (2) --- (None) > --- UTILITY (2) ------ Structural Scanner Targeting Computer > --- WEAPON (2) ------- (None) > --- INVENTORY (5) ---- Light Ion Engine Heat Sink Terrain Scanner Seismic Detector Mining Laser Peak State ------------ > --- POWER ------------ Light Ion Engine > --- PROPULSION ------- Aluminum Leg Aluminum Leg > --- UTILITY ---------- Signal Interpreter Terrain Scanner > --- WEAPON ----------- Medium Laser Assault Rifle > --- INVENTORY -------- (None) [Rating: 7] Favorites ----------- Power Light Ion Engine Engine Light Ion Engine Propulsion Aluminum Leg Leg Aluminum Leg Utility Structural Scanner Device Structural Scanner Processor Targeting Computer Weapon Assault Rifle Energy Gun Medium Laser Energy Cannon Beam Cannon Ballistic Gun Assault Rifle Special Weapon Mining Laser Build | -11 -10 ------- Run | Scr Mat Slots Evolved . | . . Power . | . . Propulsion . | . . Utility . | . . Weapon . | . . Parts Attached 19 | 4 15 Power 3 | . 3 Engine 3 | . 3 Core . | . . Reactor . | . . Propulsion 5 | 2 3 Treads . | . . Leg 5 | 2 3 Wheel . | . . Hover . | . . Flight . | . . Utility 4 | . 4 Device 2 | . 2 Storage . | . . Processor 2 | . 2 Hackware . | . . Protection . | . . Artifact . | . . Weapon 7 | 2 5 Energy Gun 4 | 1 3 Energy Cannon 1 | . 1 Ballistic Gun 1 | 1 . Ballistic Cannon . | . . Launcher . | . . Special Weapon 1 | . 1 Impact Weapon . | . . Slashing Weapon . | . . Piercing Weapon . | . . Special Melee Weapon . | . . Unidentified Prototypes . | . . Parts Lost 5 | . 5 Power 1 | . 1 Propulsion 2 | . 2 Utility . | . . Weapon 2 | . 2 Highest Loss Streak 5 | . 5 To Critical Strikes . | . . Average Slot Usage (%) 88 | . 88 Engine 11 | . 11 Leg 26 | . 26 Device 11 | . 11 Processor 11 | . 11 Energy Gun 11 | . 11 Energy Cannon 1 | . 1 Ballistic Gun 11 | . 11 Special Weapon 1 | . 1 Naked Turns . | . . Heaviest Build 11 | 4 11 Greatest Support 20 | 20 20 Greatest Overweight (x) 1 | . 1 Average Overweight (x) . | . . Largest Inventory Capacity 5 | 5 5 Average Capacity 5 | 5 5 Most Carried 5 | 1 5 Average Carried 2 | . 2 Final Capacity 5 | 5 5 Final Carried 5 | . 5 Class Distribution -------------------- 100% | Mutant Dominant Class ---------------- Mutant | -10/Materials Resources | -11 -10 ----------- Run | Scr Mat Matter Collected 381 | 240 141 Remotely . | . . Salvage Created 237 | 33 204 Parts 17 | . 17 Haulers Intercepted . | . . Recyclers Shooed 1 | . 1 Parts Field Recycled . | . . Retrieved Matter . | . . Parts Self-Destructed . | . . Prevented . | . . Kills | -11 -10 ------- Run | Scr Mat Combat Hostiles Destroyed 7 | 1 6 Guns 4 | 1 3 Cannons 3 | . 3 Classes Destroyed 4 | 1 3 Worker 1 | . 1 Recycler 1 | . 1 Swarmer 5 | . 5 Grunt 2 | 1 1 Best Kill Streak 5 | 1 5 Combat Bots Only 3 | 1 3 Max Kills in Single Turn 1 | 1 1 Gunslinging . | . . Exploded . | . . Melee . | . . Uniques/NPCs Destroyed . | . . Combat | -11 -10 -------- Run | Scr Mat Damage Taken 796 | 21 775 Core 264 | . 264 Absorbed by Shields . | . . Core Remaining (%) 100 | 100 . Volleys Fired 28 | 2 26 Largest 2 | 2 2 Hottest 120 | 70 120 Shots Fired 43 | 4 39 Gun 28 | 4 24 Cannon 14 | . 14 Launcher . | . . Special 1 | . 1 Kinetic 14 | 2 12 Thermal 23 | 2 21 Explosive . | . . Electromagnetic 6 | . 6 Robot Hit Streak 7 | 2 7 Robot Miss Streak 3 | 1 3 Penetration Max . | . . Secondary Targets 1 | . 1 Max Gunslinging Chain 1 | . 1 Shots Hit Robots 21 | 2 19 Core Hits 12 | 2 10 Critical Kills . | . . Critical Parts Destroyed . | . . Critical Strikes 3 | 1 2 Burn 3 | 1 2 Melee Attacks . | . . Impact . | . . Slashing . | . . Piercing . | . . Sneak Attacks . | . . Combat Hostiles . | . . Follow-up Attacks . | . . Damage Inflicted 330 | 22 308 Guns 190 | 22 168 Cannons 140 | . 140 Explosions . | . . Melee . | . . Ramming . | . . Kinetic 67 | 10 57 Thermal 215 | 12 203 Explosive . | . . Electromagnetic 48 | . 48 Impact . | . . Slashing . | . . Piercing . | . . Highest Corruption . | . . Average Corruption . | . . Corruption Purged . | . . Corruption Blocked . | . . Overload Shots . | . . Overflow Damage . | . . Projectiles . | . . Explosions . | . . Melee . | . . Knockbacks . | . . Impact . | . . Kinetic . | . . Secondary . | . . Self-Inflicted Damage . | . . Shots . | . . Rammed . | . . Targets Rammed . | . . Kicked . | . . Crushed . | . . Highest Temperature 180 | 4 180 Average Temperature 58 | 3 59 Received Heat Transfer 198 | 12 186 Siege Activations . | . . Robots Corrupted . | . . Combat Hostiles . | . . Parts Fried . | . . Impact Corruptions . | . . Robots Melted . | . . Combat Hostiles . | . . Parts Melted 2 | 1 1 Heat Transferred 740 | 111 629 Parts Sabotaged . | . . Parts Stolen . | . . Parts Stripped . | . . Power Chain Reactions . | . . Missiles Intercepted . | . . Alert | -11 -10 ------- Run | Scr Mat Peak Influence 120 | 20 120 Initial 13 | . 13 Average 18 | 1 20 Maximum Alert Level . | . . Low Security (%) 100 | 100 100 Level 1 . | . . Level 2 . | . . Level 3 . | . . Level 4 . | . . Level 5 . | . . High Security . | . . Max Security . | . . Squads Dispatched 1 | . 1 Investigation . | . . Extermination . | . . Reinforcement 1 | . 1 Assault . | . . Garrison . | . . Intercept . | . . Searches Triggered . | . . Construction Impeded . | . . Haulers Reinforced . | . . Active Scanning Responses . | . . Cargo Convoy Interrupts . | . . Stealth | -11 -10 --------- Run | Scr Mat Distress Signals 1 | . 1 Communications Jammed . | . . Distress Signals . | . . Times Spotted 16 | 1 15 Peak Tracking Total 6 | 1 6 Tactical Retreats . | . . Traps | -11 -10 ------- Run | Scr Mat Traps Triggered 1 | . 1 Indirectly . | . . Trap Hack Attempts . | . . Triggered . | . . Disarmed . | . . Reprogrammed . | . . Reused . | . . Traps Extracted . | . . Installed . | . . Triggered . | . . Machines | -11 -10 ---------- Run | Scr Mat Machines Disabled 1 | . 1 Max in Single Turn 1 | . 1 Machines Sabotaged . | . . Garrisons Compromised . | . . Overloaded Fab Kills . | . . Hacking | -11 -10 --------- Run | Scr Mat Machines Accessed 1 | . 1 Terminals . | . . Fabricators . | . . Repair Stations 1 | . 1 Recycling Units . | . . Scanalyzers . | . . Garrison Access . | . . Total Hacks 2 | . 2 Successful 1 | . 1 Failed 1 | . 1 Catastrophic . | . . Database Lockouts . | . . Manual . | . . Terminals . | . . Fabricators . | . . Repair Stations 2 | . 2 Recycling Units . | . . Scanalyzers . | . . Garrison Access . | . . Terminal Hacks . | . . Fabricator Hacks . | . . Repair Station Hacks 1 | . 1 Scan Component 1 | . 1 Recycling Unit Hacks . | . . Scanalyzer . | . . Garrison Access Hacks . | . . Unauthorized Hacks . | . . Terminals . | . . Fabricators . | . . Repair Stations . | . . Recycling Units . | . . Scanalyzers . | . . Garrison Access . | . . Data Cores Recovered . | . . Used . | . . Hacking Detections . | . . Full Trace Events . | . . Feedback Events . | . . Feedback Blocked . | . . Robot Schematics Acquired . | . . Robots Built . | . . Authchips . | . . Time . | . . Total Robot Build Rating . | . . Part Schematics Acquired . | . . Parts Built . | . . Authchips . | . . Time . | . . Total Part Build Rating . | . . Parts Repaired . | . . Time . | . . Parts Recycled . | . . Recycled Matter . | . . Retrieved Matter . | . . Retrieved Components . | . . Parts Scanalyzed . | . . Part Schematics Acquired . | . . Parts Damaged . | . . Bothacking | -11 -10 ------------ Run | Scr Mat Used RIF Installer . | . . Robots Hacked . | . . Non-combat . | . . Combat . | . . Robot Hacks Applied . | . . Relay Couplers Released . | . . Fabnet Peak Effective % . | . . Robots Rewired . | . . Allies Hacked . | . . Hacks Repelled . | . . Allies | -11 -10 -------- Run | Scr Mat Total Allies . | . . Largest Group . | . . Highest-Rated Group . | . . Highest-Rated Ally . | . . Total Orders . | . . Ally Attacks . | . . Total Damage . | . . Kills . | . . Allies Corrupted . | . . Allies Melted . | . . Intel | -11 -10 ------- Run | Scr Mat Robot Analysis Total . | . . Derelict Logs Recovered . | . . Drone Launches . | . . Drone Recoveries . | . . Exploration | -11 -10 ------------- Run | Scr Mat Turns Passed 961 | 113 848 Spaces Moved 694 | 99 595 Core 49 | 27 22 Treads . | . . Legs 645 | 72 573 Wheels . | . . Hover . | . . Flight . | . . Fastest Speed 50 | 50 50 Average Speed 115 | 100 118 Slowest Speed 190 | 120 190 Overloaded Moves . | . . Propulsion Burnouts . | . . Robots Hopped . | . . Cave-ins Triggered . | . . Exploration Rate (%) 37 | 5 69 Regions Visited 1 Branch Regions . Pre-discovered Areas . | . . Known Exits Taken . | . . Unknown Exits Taken 1 | 1 . Scrap Searched . | . . Spaces Dug . | . . Terrain Destroyed . | . . Melee . | . . Projectile . | . . AOE . | . . Terrain Rammed . | . . Walls Destroyed . | . . Machines Disabled . | . . Actions | -11 -10 --------- Run | Scr Mat Total 801 | 106 695 Wait 49 | 1 48 Move 693 | 98 595 Hop . | . . Pick Up 6 | 1 5 Fast Attach 13 | 3 10 Attach 3 | 1 2 Detach 2 | . 2 Swap 3 | . 3 Drop 4 | . 4 Fire 28 | 2 26 Melee . | . . Ram . | . . Kick . | . . Crush . | . . Escape Stasis . | . . Rewire . | . . Trap . | . . Miscellaneous . | . . Route ------- -11/Scrapyard -10/Materials (discovered 3 exits: [*Mat x2] / [*Min]) History --------- Turn | Location | Event 2 | -11/Scrapyard | Met Revision 17 91 | -11/Scrapyard | Discovered new exit (range 8) 114 | -11/Scrapyard | Entered Materials 312 | -10/Materials | Build established: Mutant 393 | -10/Materials | Discovered new exit (range 13) 712 | -10/Materials | Discovered new exit (range 16) 808 | -10/Materials | Discovered new exit (range 13) 930 | -10/Materials | Core integrity fell below 50% 957 | -10/Materials | Core integrity fell below 20% 962 | -10/Materials | Destroyed by G-47 Trooper with Particle Gun Last Messages --------------- 00841_ Acquired Beam Cannon. 00844_ K-01 Serf cleans the Atomic Centrifuge. 00860_ Atomic Centrifuge disabled. 00863_ G-34 Mercenary destroyed. 00866_ Dropped Lgt. Ion Engine. 00867_ Acquired Ion Engine. 00876_ Dropped Aluminum Leg. 00880_ Acquired Aluminum Leg. 00885_ Dropped Aluminum Leg. 00887_ Acquired Aluminum Leg. 00907_ EM Pulse Gun destroyed. 00910_ S-10 Pest destroyed. 00911_ Acquired 19 matter. 00922_ S-10 Pest destroyed. 00927_ Aluminum Leg destroyed. 00933_ Beam Cannon destroyed. 00935_ S-10 Pest destroyed. 00946_ Aluminum Leg destroyed. 00948_ Atomic Centrifuge disabled. 00950_ Ion Engine destroyed. Map ----- +----------------------------------------------------+ | | | | | | | | | | | | | | | | | | | | | | | | | | | | | | | | | | | | | | | | | | | | | ??????????????????????############???????????????? | | ??????????????????????############???????????????? | | ??????????????????????## g ##???????????????? | | ??????????????########## @ """ ##???????????????? | | ??????????????########## """ ##???????????????? | | ??????????????## # g "" ##???????????????? | | ??????????????## < + ##???????????????? | | ??????????????## #[ ""[*=##???????????????? | | ??????????????### # ""[=[##???????????????? | | ??????????????### # ""%%*##???????????????? | | ???????????????## # %===#### ?????????? | | ???????????????## #####+###########?????????? | | ???????????????## [ ???? | | ???????????????## ???? | | ???????????????## ???? | | ??############### ##################### ######???? | | ??############### ##################### # ???? | | ??## ! """ #### ###????????????????????????????? | | ??## "T" #### ################???????????????? | | ??## # ###############???????????????? | | ??## # ???????????????? | | ??## """ """ + T ???????????????? | | ??## """ """ # ???????????????? | | ??## """ """ # ###############???????????????? | | ??## ## ################???????????????? | | ??############# ###????????????????????????????? | | ??### # #############??????????????????? | | ???## + #############??#???????????????? | +----------------------------------------------------+ Best States ------------- Heat Dissipation 25 Energy Generation 10 Energy Capacity 250 Matter Stores 300 Matter Capacity 300 Sight Range 16 Terrain Scan Range 14 Terrain Scan Density 10 Evasion (%) 55 Targeting Accuracy 5 Item Schematics ----------------- None Robot Schematics ------------------ None Fabricated ------------ Nothing Alien Tech Used ----------------- None Achievements -------------- None Challenges ------------ None Game ------ Seed LightningHardlightDiverter Manual? 0 Play Time 00:34:52 Cumulative 2.7 hours Start 2022.04.03 @ 22:57:12 End 2022.04.03 @ 23:42:53 Sessions 1 Manual Loads 0 Difficulty Rogue Special Mode None Game No. 3 Rogue 3 Adventurer 0 Explorer 0 Win Type - Total 0 Types 0/0/0/0/0/0/0/0/0 Lore% 0 Gallery% 2 Achievement% 1 Wizard Run 0 Options --------- ASCII 0 Keyboard 1 Movement Numpad Keybinds 0 Fullscreen 1 Font 24/Crisp Map View 76x56 Tactical HUD 1 Map Filters NONE Filters NONE Steam 1 RUN: e37d40cd-3cac-472b-8579-c5817fb4a320